fUST/lending_fUST_20250219
["ID","MTS","AMOUNT","RATE_DAILY","PERIOD"]
[353550625,1739909444297,-347.31657146,0.00014027,2]
[353550626,1739909444307,-620.92,0.00014027,2]
[353550627,1739909444316,-500.0,0.00014027,2]
[353550628,1739909444328,-500.0,0.00014027,2]
[353550629,1739909444339,-500.0,0.00014027,2]
[353550630,1739909444349,-521.68,0.00014027,2]
[353550631,1739909444359,-503.17323342,0.00014027,2]
[353550632,1739909444368,-500.0,0.00014027,2]
[353550633,1739909444378,-506.21,0.00014027,2]
[353550634,1739909444387,-500.0,0.00014027,2]
[353550635,1739909444397,-500.0,0.00014027,2]
[353550636,1739909444407,-500.0,0.00014027,2]
[353550637,1739909444419,-500.0,0.00014027,2]
[353550638,1739909444429,-500.0,0.00014027,2]
[353550639,1739909444439,-500.0,0.00014027,2]
[353550640,1739909444449,-548.47036504,0.00014027,2]
[353550641,1739909444459,-500.0,0.00014027,2]
[353550642,1739909444469,-500.0,0.00014027,2]
[353550643,1739909444478,-500.0,0.00014027,2]
[353550644,1739909444488,-500.0,0.00014027,2]
[353550645,1739909444500,-539.96,0.00014027,2]
[353550646,1739909444511,-500.0,0.00014027,2]
[353550647,1739909444521,-500.0,0.00014027,2]
[353550648,1739909444532,-500.0,0.00014027,2]
[353550649,1739909444541,-500.0,0.00014027,2]
[353550650,1739909444551,-500.0,0.00014027,2]
[353550651,1739909444560,-500.0,0.00014027,2]
[353550652,1739909444569,-500.0,0.00014027,2]
[353550653,1739909444579,-179.79,0.00014027,2]
[353550654,1739909444589,-500.0,0.00014027,2]
[353550655,1739909444600,-500.0,0.00014027,2]
[353550656,1739909444610,-500.0,0.00014027,2]
[353550657,1739909444619,-500.0,0.00014027,2]
[353550658,1739909444628,-2413.66,0.00014027,2]
[353550659,1739909444638,-702.02,0.00014027,2]
[353550660,1739909444647,-1009.77,0.00014027,2]
[353550661,1739909444657,-500.0,0.00014027,2]
[353550662,1739909444667,-1176.05,0.00014027,2]
[353550663,1739909444677,-689.46,0.00014027,2]
[353550664,1739909444686,-500.0,0.00014027,2]
[353550665,1739909444696,-2827.94,0.00014027,2]
[353550666,1739909444706,-580.85,0.00014027,2]
[353550667,1739909444716,-500.0,0.00014027,2]
[353550668,1739909444726,-500.0,0.00014027,2]
[353550669,1739909444736,-500.0,0.00014027,2]
[353550670,1739909444746,-500.0,0.00014027,2]
[353550671,1739909444755,-1037.37,0.00014027,2]
[353550672,1739909444765,-500.0,0.00014027,2]
[353550673,1739909444775,-500.0,0.00014027,2]
[353550674,1739909444785,-500.0,0.00014027,2]
[353550675,1739909444795,-18276.78,0.00014027,2]
[353550676,1739909444804,-500.0,0.00014027,2]
[353550677,1739909444813,-1400.51,0.00014027,2]
[353550678,1739909444822,-743.21,0.00014027,2]
[353550679,1739909444832,-2445.59,0.00014027,2]
[353550680,1739909444842,-500.0,0.00014027,2]
[353550681,1739909444852,-500.0,0.00014027,2]
[353550682,1739909444863,-500.0,0.00014027,2]
[353550683,1739909444873,-500.0,0.00014027,2]
[353550684,1739909444883,-500.0,0.00014027,2]
[353550685,1739909444892,-1538.97,0.00014027,2]
[353550686,1739909444903,-500.0,0.00014027,2]
[353550687,1739909444913,-1574.81,0.00014027,2]
[353550688,1739909444923,-500.0,0.00014027,2]
[353550689,1739909444933,-500.0,0.00014027,2]
[353550690,1739909444943,-500.0,0.00014027,2]
[353550691,1739909444953,-500.0,0.00014027,2]
[353550692,1739909444963,-729.26,0.00014027,2]
[353550693,1739909444972,-500.0,0.00014027,2]
[353550694,1739909444982,-500.0,0.00014027,2]
[353550695,1739909444991,-589.33,0.00014027,2]
[353550696,1739909445000,-500.0,0.00014027,2]
[353550697,1739909445011,-500.0,0.00014027,2]
[353550698,1739909445020,-950.8,0.00014027,2]
[353550699,1739909445029,-500.0,0.00014027,2]
[353550700,1739909445038,-500.0,0.00014027,2]
[353550701,1739909445048,-500.0,0.00014027,2]
[353550702,1739909445059,-504.72747428,0.00014027,2]
[353550703,1739909445068,-652.43,0.00014027,2]
[353550704,1739909445078,-500.0,0.00014027,2]
[353550705,1739909445087,-500.0,0.00014027,2]
[353550706,1739909445097,-500.0,0.00014027,2]
[353550707,1739909445108,-500.0,0.00014027,2]
[353550708,1739909445117,-515.97559689,0.00014027,2]
[353550709,1739909445127,-500.0,0.00014027,2]
[353550710,1739909445136,-1991.59,0.00014027,2]
[353550711,1739909445147,-551.84,0.00014027,2]
[353550712,1739909445156,-500.0,0.00014027,2]
[353550713,1739909445166,-6874.98,0.00014027,2]
[353550714,1739909445176,-500.0,0.00014027,2]
[353550715,1739909445186,-500.0,0.00014027,2]
[353550716,1739909445195,-659.48,0.00014027,2]
[353550717,1739909445205,-500.0,0.00014109,2]
[353550718,1739909445214,-500.0,0.00014109,2]
[353550719,1739909445224,-500.0,0.00014109,2]
[353550720,1739909445233,-500.0,0.00014109,2]
[353550721,1739909445243,-500.0,0.00014109,2]
[353550722,1739909445253,-500.0,0.00014109,2]
[353550723,1739909445262,-500.0,0.00014109,2]
[353550724,1739909445272,-500.0,0.00014109,2]
[353550725,1739909445281,-500.0,0.00014109,2]
[353550726,1739909445291,-620.92,0.00014109,2]
[353550727,1739909445300,-500.0,0.00014109,2]
[353550728,1739909445310,-500.0,0.00014109,2]
[353550729,1739909445320,-500.0,0.00014109,2]
[353550731,1739909445330,-521.68,0.00014109,2]
[353550732,1739909445340,-500.0,0.00014109,2]
[353550733,1739909445349,-500.0,0.00014109,2]
[353550734,1739909445359,-520.48,0.00014109,2]
[353550735,1739909445369,-500.0,0.00014109,2]
[353550737,1739909445378,-500.0,0.00014109,2]
[353550738,1739909445388,-500.0,0.00014109,2]
[353550740,1739909445398,-500.0,0.00014109,2]
[353550741,1739909445408,-500.0,0.00014109,2]
[353550742,1739909445422,-619.87838707,0.00014109,2]
[353550743,1739909445431,-500.0,0.00014109,2]
[353550745,1739909445440,-500.0,0.00014109,2]
[353550747,1739909445450,-539.96,0.00014109,2]
[353550749,1739909445460,-500.0,0.00014109,2]
[353550750,1739909445469,-500.0,0.00014109,2]
[353550752,1739909445479,-500.0,0.00014109,2]
[353550753,1739909445489,-500.0,0.00014109,2]
[353550754,1739909445499,-500.0,0.00014109,2]
[353550755,1739909445511,-500.0,0.00014109,2]
[353550756,1739909445521,-500.0,0.00014109,2]
[353550758,1739909445530,-500.0,0.00014109,2]
[353550759,1739909445540,-500.0,0.00014109,2]
[353550763,1739909445551,-500.0,0.00014109,2]
[353550764,1739909445561,-500.0,0.00014109,2]
[353550765,1739909445571,-2413.66,0.00014109,2]
[353550766,1739909445580,-702.02,0.00014109,2]
[353550767,1739909445590,-1009.77,0.00014109,2]
[353550768,1739909445600,-500.0,0.00014109,2]
[353550769,1739909445610,-1176.05,0.00014109,2]
[353550770,1739909445619,-689.46,0.00014109,2]
[353550771,1739909445629,-359.49719466,0.00014109,2]
[353550772,1739909445639,-2827.94,0.00014109,2]
[353550773,1739909445649,-580.85,0.00014109,2]
[353550774,1739909445659,-500.0,0.00014109,2]
[353550775,1739909445669,-500.0,0.00014109,2]
[353550776,1739909445679,-500.0,0.00014109,2]
[353550777,1739909445690,-500.0,0.00014109,2]
[353550778,1739909445700,-1037.37,0.00014109,2]
[353550779,1739909445710,-500.0,0.00014109,2]
[353550780,1739909445720,-500.0,0.00014109,2]
[353550781,1739909445730,-500.0,0.00014109,2]
[353550782,1739909445740,-18276.78,0.00014109,2]
[353550783,1739909445750,-500.0,0.00014109,2]
[353550784,1739909445760,-1400.51,0.00014109,2]
[353550785,1739909445770,-743.21,0.00014109,2]
[353550786,1739909445779,-2445.59,0.00014109,2]
[353550787,1739909445789,-500.0,0.00014109,2]
[353550788,1739909445798,-500.0,0.00014109,2]
[353550790,1739909445808,-500.0,0.00014109,2]
[353550791,1739909445818,-500.0,0.00014109,2]
[353550792,1739909445827,-500.0,0.00014109,2]
[353550793,1739909445837,-1538.97,0.00014109,2]
[353550794,1739909445847,-500.0,0.00014109,2]
[353550795,1739909445857,-1574.81,0.00014109,2]
[353550797,1739909445867,-500.0,0.00014109,2]
[353550799,1739909445876,-500.0,0.00014109,2]
[353550801,1739909445886,-500.0,0.00014109,2]
[353550803,1739909445895,-500.0,0.00014109,2]
[353550805,1739909445905,-729.26,0.00014109,2]
[353550806,1739909445914,-500.0,0.00014109,2]
[353550807,1739909445923,-500.0,0.00014109,2]
[353550808,1739909445933,-589.33,0.00014109,2]
[353550809,1739909445942,-343.81892138,0.00014109,2]
[353550810,1739909445952,-500.0,0.00014109,2]
[353550811,1739909445961,-950.8,0.00014109,2]
[353550812,1739909445971,-500.0,0.00014109,2]
[353550813,1739909445980,-500.0,0.00014109,2]
[353550814,1739909445990,-500.0,0.00014109,2]
[353550815,1739909445999,-652.43,0.00014109,2]
[353550816,1739909446008,-500.0,0.00014109,2]
[353550817,1739909446018,-343.60001524,0.00014109,2]
[353550818,1739909446028,-500.0,0.00014109,2]
[353550819,1739909446038,-500.0,0.00014109,2]
[353550820,1739909446047,-1991.59,0.00014109,2]
[353550821,1739909446057,-551.84,0.00014109,2]
[353550822,1739909446067,-500.0,0.00014109,2]
[353550823,1739909446076,-6874.98,0.00014109,2]
[353550824,1739909446086,-500.0,0.00014109,2]
[353550825,1739909446096,-500.0,0.00014109,2]
[353550826,1739909446106,-659.48,0.00014109,2]
[353550827,1739909446116,-7438.69753278,0.00014123,2]
[353550828,1739909446127,-500.0,0.00014173,2]
[353550829,1739909446137,-500.0,0.00014173,2]
[353550830,1739909446149,-357.761,0.00014186,2]
[353550831,1739909446159,-500.0,0.00014191,2]
[353550832,1739909446170,-500.0,0.00014191,2]
[353550833,1739909446181,-500.0,0.00014191,2]
[353550834,1739909446190,-500.0,0.00014191,2]
[353550835,1739909446199,-500.0,0.00014191,2]
[353550836,1739909446207,-500.0,0.00014191,2]
[353550837,1739909446217,-500.0,0.00014191,2]
[353550838,1739909446226,-500.0,0.00014191,2]
[353550839,1739909446235,-620.92,0.00014191,2]
[353550840,1739909446245,-500.0,0.00014191,2]
[353550841,1739909446256,-500.0,0.00014191,2]
[353550842,1739909446267,-521.68,0.00014191,2]
[353550843,1739909446276,-500.0,0.00014191,2]
[353550844,1739909446286,-559.9939918,0.00014191,2]
[353550845,1739909446295,-500.0,0.00014191,2]
[353550846,1739909446307,-500.0,0.00014191,2]
[353550847,1739909446317,-500.0,0.00014191,2]
[353550848,1739909446417,-500.0,0.00014191,2]
[353550849,1739909446428,-500.0,0.00014191,2]
[353550850,1739909446439,-500.0,0.00014191,2]
[353550851,1739909446450,-500.0,0.00014191,2]
[353550852,1739909446461,-539.96,0.00014191,2]
[353550853,1739909446472,-341.48,0.00014191,2]
[353550854,1739909446483,-500.0,0.00014191,2]
[353550855,1739909446494,-500.0,0.00014191,2]
[353550856,1739909446504,-500.0,0.00014191,2]
[353550857,1739909446514,-500.0,0.00014191,2]
[353550858,1739909446524,-500.0,0.00014191,2]
[353550859,1739909446533,-500.0,0.00014191,2]
[353550860,1739909446543,-500.0,0.00014191,2]
[353550861,1739909446553,-500.0,0.00014191,2]
[353550862,1739909446563,-500.0,0.00014191,2]
[353550863,1739909446572,-500.0,0.00014191,2]
[353550864,1739909446583,-2413.66,0.00014191,2]
[353550865,1739909446593,-1009.77,0.00014191,2]
[353550866,1739909446603,-702.02,0.00014191,2]
[353550867,1739909446613,-500.0,0.00014191,2]
[353550868,1739909446623,-1176.05,0.00014191,2]
[353550869,1739909446633,-689.46,0.00014191,2]
[353550870,1739909446643,-2827.94,0.00014191,2]
[353550871,1739909446653,-580.85,0.00014191,2]
[353550872,1739909446662,-500.0,0.00014191,2]
[353550873,1739909446672,-500.0,0.00014191,2]
[353550874,1739909446681,-500.0,0.00014191,2]
[353550875,1739909446690,-500.0,0.00014191,2]
[353550876,1739909446700,-1037.37,0.00014191,2]
[353550877,1739909446710,-500.0,0.00014191,2]
[353550878,1739909446720,-500.0,0.00014191,2]
[353550879,1739909446729,-500.0,0.00014191,2]
[353550880,1739909446739,-18276.78,0.00014191,2]
[353550881,1739909446749,-500.0,0.00014191,2]
[353550882,1739909446759,-1400.51,0.00014191,2]
[353550883,1739909446769,-743.21,0.00014191,2]
[353550884,1739909446779,-2445.59,0.00014191,2]
[353550885,1739909446789,-500.0,0.00014191,2]
[353550886,1739909446799,-500.0,0.00014191,2]
[353550887,1739909446809,-500.0,0.00014191,2]
[353550888,1739909446819,-500.0,0.00014191,2]
[353550889,1739909446829,-500.0,0.00014191,2]
[353550890,1739909446839,-1538.97,0.00014191,2]
[353550891,1739909446849,-500.0,0.00014191,2]
[353550892,1739909446858,-1574.81,0.00014191,2]
[353550893,1739909446868,-500.0,0.00014191,2]
[353550894,1739909446878,-500.0,0.00014191,2]
[353550895,1739909446887,-500.0,0.00014191,2]
[353550896,1739909446897,-500.0,0.00014191,2]
[353550897,1739909446906,-729.26,0.00014191,2]
[353550898,1739909446917,-500.0,0.00014191,2]
[353550899,1739909446928,-500.0,0.00014191,2]
[353550900,1739909446938,-589.33,0.00014191,2]
[353550901,1739909446948,-384.54830207,0.00014191,2]
[353550902,1739909446956,-950.8,0.00014191,2]
[353550903,1739909446965,-500.0,0.00014191,2]
[353550904,1739909446972,-175.6,0.00014191,2]
[353550905,1739909446981,-500.0,0.00014191,2]
[353550906,1739909446989,-652.43,0.00014191,2]
[353550907,1739909446997,-500.0,0.00014191,2]
[353550908,1739909447007,-215.9,0.00014191,2]
[353550909,1739909447017,-500.0,0.00014191,2]
[353550910,1739909447028,-1991.59,0.00014191,2]
[353550911,1739909447038,-551.84,0.00014191,2]
[353550912,1739909447050,-500.0,0.00014191,2]
[353550913,1739909447059,-6874.98,0.00014191,2]
[353550914,1739909447069,-500.0,0.00014191,2]
[353550915,1739909447081,-500.0,0.00014191,2]
[353550916,1739909447091,-659.48,0.00014191,2]
[353550917,1739909447101,-1000.0,0.00014221,2]
[353550918,1739909447111,-1131.18133988,0.00014221,2]
[353550919,1739909447121,-327.69,0.00014273,2]
[353550920,1739909447132,-500.0,0.00014273,2]
[353550921,1739909447142,-500.0,0.00014273,2]
[353550922,1739909447151,-500.0,0.00014273,2]
[353550923,1739909447161,-500.0,0.00014273,2]
[353550924,1739909447171,-500.0,0.00014273,2]
[353550925,1739909447183,-620.92,0.00014273,2]
[353550926,1739909447194,-500.0,0.00014273,2]
[353550927,1739909447204,-500.0,0.00014273,2]
[353550928,1739909447214,-521.68,0.00014273,2]
[353550929,1739909447224,-500.0,0.00014273,2]
[353550930,1739909447233,-500.0,0.00014273,2]
[353550931,1739909447243,-500.0,0.00014273,2]
[353550932,1739909447254,-500.0,0.00014273,2]
[353550933,1739909447264,-500.0,0.00014273,2]
[353550934,1739909447274,-500.0,0.00014273,2]
[353550935,1739909447284,-500.0,0.00014273,2]
[353550936,1739909447294,-500.0,0.00014273,2]
[353550937,1739909447303,-539.96,0.00014273,2]
[353550938,1739909447314,-500.0,0.00014273,2]
[353550939,1739909447323,-500.0,0.00014273,2]
[353550940,1739909447333,-500.0,0.00014273,2]
[353550941,1739909447343,-354.92357979,0.00014273,2]
[353550942,1739909447354,-500.0,0.00014273,2]
[353550943,1739909447365,-500.0,0.00014273,2]
[353550944,1739909447375,-500.0,0.00014273,2]
[353550945,1739909447385,-500.0,0.00014273,2]
[353550946,1739909447395,-500.0,0.00014273,2]
[353550947,1739909447405,-2413.66,0.00014273,2]
[353550948,1739909447418,-1009.77,0.00014273,2]
[353550949,1739909447428,-702.02,0.00014273,2]
[353550950,1739909447437,-500.0,0.00014273,2]
[353550951,1739909447447,-1176.05,0.00014273,2]
[353550952,1739909447459,-689.46,0.00014273,2]
[353550953,1739909447469,-2827.94,0.00014273,2]
[353550954,1739909447479,-580.85,0.00014273,2]
[353550955,1739909447488,-500.0,0.00014273,2]
[353550956,1739909447499,-403.87,0.00014273,2]
[353550957,1739909447509,-500.0,0.00014273,2]
[353550958,1739909447518,-500.0,0.00014273,2]
[353550959,1739909447528,-1037.37,0.00014273,2]
[353550960,1739909447538,-500.89567574,0.00014273,2]
[353550961,1739909447547,-500.0,0.00014273,2]
[353550962,1739909447557,-500.0,0.00014273,2]
[353550963,1739909447567,-18276.78,0.00014273,2]
[353550964,1739909447577,-500.0,0.00014273,2]
[353550965,1739909447586,-1400.51,0.00014273,2]
[353550966,1739909447597,-743.21,0.00014273,2]
[353550967,1739909447606,-2445.59,0.00014273,2]
[353550968,1739909447616,-500.0,0.00014273,2]
[353550969,1739909447626,-500.0,0.00014273,2]
[353550970,1739909447635,-500.0,0.00014273,2]
[353550971,1739909447647,-1538.97,0.00014273,2]
[353550972,1739909447656,-1574.81,0.00014273,2]
[353550973,1739909447666,-374.41,0.00014273,2]
[353550974,1739909447676,-500.0,0.00014273,2]
[353550975,1739909447688,-500.0,0.00014273,2]
[353550976,1739909447698,-500.0,0.00014273,2]
[353550977,1739909447708,-729.26,0.00014273,2]
[353550978,1739909447719,-500.0,0.00014273,2]
[353550979,1739909447729,-500.0,0.00014273,2]
[353550980,1739909447739,-589.33,0.00014273,2]
[353550981,1739909447750,-950.8,0.00014273,2]
[353550982,1739909447759,-500.0,0.00014273,2]
[353550983,1739909447769,-500.0,0.00014273,2]
[353550984,1739909447779,-652.43,0.00014273,2]
[353550985,1739909447790,-500.0,0.00014273,2]
[353550986,1739909447800,-500.0,0.00014273,2]
[353550987,1739909447810,-1991.59,0.00014273,2]
[353550988,1739909447820,-551.84,0.00014273,2]
[353550989,1739909447829,-500.0,0.00014273,2]
[353550990,1739909447839,-6874.98,0.00014273,2]
[353550991,1739909447850,-575.71852935,0.00014273,2]
[353550992,1739909447860,-500.0,0.00014273,2]
[353550993,1739909447870,-659.48,0.00014273,2]
[353550994,1739909447880,-150.0,0.00014293,2]
[353550995,1739909447890,-150.0,0.00014293,2]
[353550996,1739909447899,-166.160499,0.0001432,2]
[353550997,1739909447909,-500.0,0.00014356,2]
[353550998,1739909447919,-500.0,0.00014356,2]
[353550999,1739909447929,-500.0,0.00014356,2]
[353551000,1739909447938,-500.0,0.00014356,2]
[353551001,1739909447948,-570.58,0.00014356,2]
[353551002,1739909447958,-620.92,0.00014356,2]
[353551003,1739909447968,-500.0,0.00014356,2]
[353551004,1739909447979,-500.0,0.00014356,2]
[353551005,1739909447988,-521.68,0.00014356,2]
[353551006,1739909447998,-500.0,0.00014356,2]
[353551007,1739909448009,-500.0,0.00014356,2]
[353551008,1739909448021,-500.0,0.00014356,2]
[353551009,1739909448032,-500.0,0.00014356,2]
[353551010,1739909448042,-500.0,0.00014356,2]
[353551011,1739909448054,-500.0,0.00014356,2]
[353551012,1739909448065,-500.0,0.00014356,2]
[353551013,1739909448075,-500.0,0.00014356,2]
[353551014,1739909448085,-539.96,0.00014356,2]
[353551015,1739909448097,-204.09565581,0.00014356,2]
[353551016,1739909448108,-500.0,0.00014356,2]
[353551017,1739909448119,-500.0,0.00014356,2]
[353551018,1739909448130,-500.0,0.00014356,2]
[353551019,1739909448141,-340.18,0.00014356,2]
[353551020,1739909448151,-500.0,0.00014356,2]
[353551021,1739909448162,-500.0,0.00014356,2]
[353551022,1739909448174,-500.0,0.00014356,2]
[353551023,1739909448185,-2413.66,0.00014356,2]
[353551024,1739909448196,-1009.77,0.00014356,2]
[353551025,1739909448206,-702.02,0.00014356,2]
[353551026,1739909448217,-500.0,0.00014356,2]
[353551027,1739909448228,-1176.05,0.00014356,2]
[353551028,1739909448239,-689.46,0.00014356,2]
[353551029,1739909448249,-2827.94,0.00014356,2]
[353551030,1739909448260,-580.85,0.00014356,2]
[353551031,1739909448270,-500.0,0.00014356,2]
[353551032,1739909448280,-500.0,0.00014356,2]
[353551033,1739909448290,-500.0,0.00014356,2]
[353551034,1739909448301,-1037.37,0.00014356,2]
[353551035,1739909448312,-500.0,0.00014356,2]
[353551036,1739909448322,-500.0,0.00014356,2]
[353551037,1739909448332,-18276.78,0.00014356,2]
[353551038,1739909448342,-500.0,0.00014356,2]
[353551039,1739909448352,-1400.51,0.00014356,2]
[353551040,1739909448362,-743.21,0.00014356,2]
[353551041,1739909448373,-2445.59,0.00014356,2]
[353551042,1739909448383,-500.0,0.00014356,2]
[353551043,1739909448393,-500.0,0.00014356,2]
[353551044,1739909448403,-500.0,0.00014356,2]
[353551045,1739909448417,-1538.97,0.00014356,2]
[353551046,1739909448525,-1574.81,0.00014356,2]
[353551047,1739909448538,-500.0,0.00014356,2]
[353551048,1739909448550,-500.0,0.00014356,2]
[353551049,1739909448561,-500.0,0.00014356,2]
[353551050,1739909448573,-729.26,0.00014356,2]
[353551051,1739909448583,-500.0,0.00014356,2]
[353551052,1739909448594,-500.0,0.00014356,2]
[353551053,1739909448605,-589.33,0.00014356,2]
[353551054,1739909448615,-950.8,0.00014356,2]
[353551055,1739909448627,-500.0,0.00014356,2]
[353551056,1739909448638,-500.0,0.00014356,2]
[353551057,1739909448648,-652.43,0.00014356,2]
[353551058,1739909448658,-500.0,0.00014356,2]
[353551059,1739909448668,-500.0,0.00014356,2]
[353551060,1739909448679,-1991.59,0.00014356,2]
[353551061,1739909448689,-551.84,0.00014356,2]
[353551062,1739909448699,-500.0,0.00014356,2]
[353551063,1739909448709,-6874.98,0.00014356,2]
[353551064,1739909448720,-500.0,0.00014356,2]
[353551065,1739909448730,-659.48,0.00014356,2]
[353551066,1739909448741,-150.0,0.00014385,2]
[353551067,1739909448750,-538.0,0.00014385,2]
[353551068,1739909448760,-1971.0,0.00014385,2]
[353551069,1739909448770,-2291.0,0.00014385,2]
[353551070,1739909448780,-500.0,0.00014438,2]
[353551071,1739909448790,-500.0,0.00014438,2]
[353551072,1739909448800,-500.0,0.00014438,2]
[353551073,1739909448810,-500.0,0.00014438,2]
[353551074,1739909448820,-620.92,0.00014438,2]
[353551075,1739909448831,-514.07,0.00014438,2]
[353551076,1739909448842,-500.0,0.00014438,2]
[353551077,1739909448852,-521.68,0.00014438,2]
[353551078,1739909448863,-500.0,0.00014438,2]
[353551079,1739909448874,-500.0,0.00014438,2]
[353551080,1739909448885,-500.0,0.00014438,2]
[353551081,1739909448895,-500.0,0.00014438,2]
[353551082,1739909448905,-500.0,0.00014438,2]
[353551083,1739909448916,-500.0,0.00014438,2]
[353551084,1739909448926,-500.0,0.00014438,2]
[353551085,1739909448937,-500.0,0.00014438,2]
[353551086,1739909448948,-539.96,0.00014438,2]
[353551087,1739909448959,-500.0,0.00014438,2]
[353551088,1739909448969,-500.0,0.00014438,2]
[353551089,1739909448979,-500.0,0.00014438,2]
[353551090,1739909448990,-500.0,0.00014438,2]
[353551091,1739909449000,-500.0,0.00014438,2]
[353551092,1739909449011,-359.35027064,0.00014438,2]
[353551093,1739909449022,-2413.66,0.00014438,2]
[353551094,1739909449032,-1009.77,0.00014438,2]
[353551095,1739909449043,-702.02,0.00014438,2]
[353551096,1739909449054,-500.0,0.00014438,2]
[353551097,1739909449066,-1176.05,0.00014438,2]
[353551098,1739909449077,-689.46,0.00014438,2]
[353551099,1739909449088,-2827.94,0.00014438,2]
[353551100,1739909449100,-580.85,0.00014438,2]
[353551101,1739909449111,-500.0,0.00014438,2]
[353551102,1739909449121,-500.0,0.00014438,2]
[353551103,1739909449131,-500.0,0.00014438,2]
[353551104,1739909449142,-1037.37,0.00014438,2]
[353551105,1739909449152,-500.0,0.00014438,2]
[353551106,1739909449164,-500.0,0.00014438,2]
[353551107,1739909449174,-18276.78,0.00014438,2]
[353551108,1739909449184,-500.0,0.00014438,2]
[353551109,1739909449194,-1400.51,0.00014438,2]
[353551110,1739909449205,-743.21,0.00014438,2]
[353551111,1739909449214,-2445.59,0.00014438,2]
[353551112,1739909449224,-500.0,0.00014438,2]
[353551113,1739909449234,-566.9422936,0.00014438,2]
[353551114,1739909449244,-500.0,0.00014438,2]
[353551115,1739909449255,-1538.97,0.00014438,2]
[353551116,1739909449266,-1574.81,0.00014438,2]
[353551117,1739909449276,-500.0,0.00014438,2]
[353551118,1739909449287,-500.0,0.00014438,2]
[353551119,1739909449297,-729.26,0.00014438,2]
[353551120,1739909449308,-500.0,0.00014438,2]
[353551121,1739909449319,-589.33,0.00014438,2]
[353551122,1739909449329,-950.8,0.00014438,2]
[353551123,1739909449342,-500.0,0.00014438,2]
[353551124,1739909449352,-500.0,0.00014438,2]
[353551125,1739909449363,-652.43,0.00014438,2]
[353551126,1739909449374,-500.0,0.00014438,2]
[353551127,1739909449385,-500.0,0.00014438,2]
[353551128,1739909449395,-1991.59,0.00014438,2]
[353551129,1739909449405,-551.84,0.00014438,2]
[353551130,1739909449418,-500.0,0.00014438,2]
[353551131,1739909449428,-6874.98,0.00014438,2]
[353551132,1739909449438,-500.0,0.00014438,2]
[353551133,1739909449449,-659.48,0.00014438,2]
[353551134,1739909449460,-1000.0,0.00014438,2]
[353551135,1739909449471,-1302.27296877,0.00014502,2]
[353551136,1739909449482,-208.89385453,0.0001452,2]
[353551137,1739909449494,-500.0,0.0001452,2]
[353551138,1739909449506,-500.0,0.0001452,2]
[353551139,1739909449521,-316.26,0.0001452,2]
[353551140,1739909449540,-620.92,0.0001452,2]
[353551141,1739909449557,-500.0,0.0001452,2]